Cogmind - Beta 12 @@@ ROGUE MODE // 2023.03.04 @ 01:46:40 Player: 3.14 Result: Self-destructed Performance ------------- Evolutions (2) 1000 Regions Visited (7) 1400 Robots Destroyed (135) 675 Value Destroyed (3499) 3499 Prototype IDs (30) 600 Alien Tech Used (0) 0 Bonus (578) 578 TOTAL SCORE: 7752 Bonus ------- High Alert Combat Kills 278 Aligned with FarCom 300 Cogmind --------- Core Integrity 395/550 Matter 300/300 Energy 290/290 System Corruption 3% Temperature Cool (0) Movement Walking (110) Location -8/Materials Parts ------- > --- POWER (1) -------- Improved Deuterium Engine > --- PROPULSION (3) --- Aluminum Leg Carbon-fiber Leg VSS Leg > --- UTILITY (5) ------ Advanced Heat Sink Lightpack 2.0 Hardened Medium Armor Plating > --- WEAPON (2) ------- Heavy Assault Rifle Scythe > --- INVENTORY (40) --- Ion Engine Deuterium Engine Nuclear Core Light Treads Light Treads Armored Treads Armored Treads Advanced Treads Aluminum Leg Aluminum Leg Aluminum Leg Aluminum Leg Carbon-fiber Leg Improved Carbon-fiber Leg Improved Heat Sink Improved Heat Sink Improved Heat Sink Improved Cooling System High-capacity Matter Pod (200) Improved Sensor Array Light Armor Plating Hardened Light Armor Plating Improved Light Armor Plating Hardlight Generator Hardlight Generator Hardlight Generator Hardlight Generator Long-range Tractor Beam Beam Rifle Improved Medium Laser Pulse Rifle Advanced Beam Cannon Light Assault Rifle Heavy Assault Rifle Shotgun High-powered Shotgun Gauss Rifle Advanced EMP Blaster Missile Launcher Peak State ------------ > --- POWER ------------ Improved Deuterium Engine > --- PROPULSION ------- VSS Leg VSS Leg VSS Leg > --- UTILITY ---------- Advanced Heat Sink Lightpack 2.0 Hardened Medium Armor Plating > --- WEAPON ----------- Heavy Assault Rifle Gauss Rifle > --- INVENTORY -------- Ion Engine Deuterium Engine Nuclear Core Light Treads Light Treads Advanced Treads Aluminum Leg Carbon-fiber Leg Carbon-fiber Leg Improved Carbon-fiber Leg Improved Heat Sink Improved Heat Sink Improved Heat Sink Improved Cooling System High-capacity Matter Pod Improved Sensor Array Light Armor Plating Hardened Light Armor Plating Improved Light Armor Plating Hardlight Generator Hardlight Generator Hardlight Generator Hardlight Generator Long-range Tractor Beam Beam Rifle Improved Medium Laser Pulse Rifle Advanced Beam Cannon Advanced Beam Cannon Light Assault Rifle Heavy Assault Rifle Shotgun High-powered Shotgun Advanced EMP Blaster Missile Launcher Scythe [Rating: 66] Favorites ----------- Power Cooled Ion Engine Engine Cooled Ion Engine Propulsion Light Treads Treads Light Treads Leg VSS Leg Utility Huge Storage Unit Device Improved Heat Sink Storage Huge Storage Unit Processor Transport Network Coupler Protection Light Armor Plating Weapon Advanced Beam Cannon Energy Gun Beam Rifle Energy Cannon Advanced Beam Cannon Ballistic Gun Heavy Assault Rifle Launcher Grenade Launcher Special Weapon Mining Laser Slashing Weapon Scythe Build | -11 -10 -10 -9 -9 -9 -8 -8 ------- Run | Jun Mat Min Mat Min Exi Min Mat Slots Evolved 4 | . . . 2 . . . 2 Power . | . . . . . . . . Propulsion 1 | . . . 1 . . . . Utility 3 | . . . 1 . . . 2 Weapon . | . . . . . . . . Parts Attached 110 | . 12 7 27 3 2 12 47 Power 8 | . 1 . 4 . . . 3 Engine 8 | . 1 . 4 . . . 3 Core . | . . . . . . . . Reactor . | . . . . . . . . Propulsion 39 | . 6 2 9 . 2 3 17 Treads 24 | . . 2 9 . 2 3 8 Leg 15 | . 6 . . . . . 9 Wheel . | . . . . . . . . Hover . | . . . . . . . . Flight . | . . . . . . . . Utility 31 | . 4 3 7 2 . 2 13 Device 14 | . 3 3 2 1 . 1 4 Storage 3 | . 1 . 1 . . . 1 Processor 1 | . . . 1 . . . . Hackware . | . . . . . . . . Protection 13 | . . . 3 1 . 1 8 Artifact . | . . . . . . . . Weapon 32 | . 1 2 7 1 . 7 14 Energy Gun 6 | . 1 1 3 . . 1 . Energy Cannon 8 | . . . 1 . . 2 5 Ballistic Gun 9 | . . . 3 1 . 2 3 Ballistic Cannon . | . . . . . . . . Launcher 7 | . . . . . . 2 5 Special Weapon 1 | . . 1 . . . . . Impact Weapon . | . . . . . . . . Slashing Weapon 1 | . . . . . . . 1 Piercing Weapon . | . . . . . . . . Special Melee Weapon . | . . . . . . . . Unidentified Prototypes 7 | . . 1 4 . . 1 1 Parts Lost 10 | . . . 3 . . 5 2 Power 1 | . . . 1 . . . . Propulsion 5 | . . . . . . 3 2 Utility 3 | . . . 2 . . 1 . Weapon 1 | . . . . . . 1 . Highest Loss Streak 3 | . . . 1 . . 3 1 To Critical Strikes . | . . . . . . . . Average Slot Usage (%) 97 | . 95 99 99 100 100 99 93 Engine 10 | . 14 14 10 11 11 11 9 Treads 26 | . . 16 32 33 33 32 19 Leg 4 | . 28 11 . . . . 7 Device 13 | . 9 13 11 11 11 11 20 Storage 10 | . 14 14 11 11 11 11 9 Processor 2 | . . . 8 3 . . . Protection 6 | . . . 1 7 11 11 8 Energy Gun 3 | . 14 19 5 . . 1 . Energy Cannon 9 | . . . 8 11 11 9 14 Ballistic Gun 7 | . 14 6 7 11 11 10 3 Naked Turns . | . . . . . . . . Heaviest Build 105 | 11 30 32 99 99 99 99 105 Greatest Support 62 | 20 20 40 60 60 60 60 62 Greatest Overweight (x) 2 | . 1 1 2 1 1 1 1 Average Overweight (x) . | . . . . 1 1 1 . Largest Inventory Capacity 40 | . 15 15 25 25 25 25 40 Average Capacity 24 | . 8 15 24 25 25 25 28 Most Carried 39 | . 11 15 25 25 25 25 39 Average Carried 23 | . 7 13 23 24 24 23 27 Final Capacity 40 | 8 15 15 25 25 25 25 40 Final Carried 39 | 6 11 15 25 25 25 24 39 Class Distribution -------------------- 64% | Scavenger-Mutant 27% | Mutant 7% | Hauler-Mutant Dominant Class ---------------- Scavenger-Mutant | -10/Materials Scavenger-Mutant | -10/Mines Scavenger-Mutant | -9/Materials Scavenger-Mutant | -9/Mines Scavenger-Mutant | -9/Exiles Scavenger-Mutant | -8/Mines Scavenger-Mutant | -8/Materials Resources | -11 -10 -10 -9 -9 -9 -8 -8 ----------- Run | Jun Mat Min Mat Min Exi Min Mat Matter Collected 1897 | 200 153 48 483 74 20 215 704 Remotely . | . . . . . . . . Salvage Created 4792 | . 376 57 1797 161 . 595 1806 Parts 273 | . 22 2 103 14 . 28 104 Haulers Intercepted 8 | . . . 6 . . . 2 Recyclers Shooed 4 | . 1 1 2 . . . . Parts Field Recycled . | . . . . . . . . Retrieved Matter . | . . . . . . . . Parts Self-Destructed . | . . . . . . . . Prevented . | . . . . . . . . Kills | -11 -10 -10 -9 -9 -9 -8 -8 ------- Run | Jun Mat Min Mat Min Exi Min Mat Combat Hostiles Destroyed 100 | . 11 . 30 6 . 16 37 Melee 4 | . . . . . . . 4 Guns 43 | . 11 . 21 1 . 8 2 Cannons 34 | . . . 9 5 . 1 19 AOE 16 | . . . . . . 7 9 Classes Destroyed 14 | . 2 1 5 . . 3 3 Worker 7 | . . . 2 . . 1 4 Builder 6 | . . . 3 . . 2 1 Tunneler 1 | . . . . . . 1 . Hauler 8 | . . . 6 . . . 2 Recycler 10 | . . 1 5 . . . 4 Watcher 3 | . . . 2 . . . 1 Swarmer 32 | . 3 . 11 3 . 4 11 Grunt 52 | . 8 . 15 3 . 10 16 Brawler 2 | . . . . . . 1 1 Duelist 1 | . . . . . . 1 . Sentry 7 | . . . 4 . . . 3 Specialist 4 | . . . . . . . 4 Hunter 1 | . . . . . . . 1 Heavy 1 | . . . . . . . 1 Best Kill Streak 11 | . 3 1 6 3 . 7 11 Combat Bots Only 10 | . 3 . 4 3 . 4 10 Max Kills in Single Turn 4 | . 1 1 2 1 . 3 4 Gunslinging . | . . . . . . . . Exploded 3 | . . . . . . 3 3 Melee 1 | . . . . . . . 1 Uniques/NPCs Destroyed . | . . . . . . . . Combat | -11 -10 -10 -9 -9 -9 -8 -8 -------- Run | Jun Mat Min Mat Min Exi Min Mat Damage Taken 4302 | . 378 . 1242 100 . 1022 1560 Core 520 | . 95 . 140 28 . 102 155 Absorbed by Shields 283 | . . . . . . . 283 Regen/Repaired (Parts) 422 | . . . 180 . . . 242 Core Remaining (%) 64 | 100 . 62 . . . 32 . Volleys Fired 315 | . 43 8 110 9 . 50 95 Largest 2 | . 2 2 2 2 . 2 2 Hottest 136 | . 70 100 121 91 . 124 136 Shots Fired 604 | . 84 10 218 18 . 93 181 Gun 348 | . 84 4 161 9 . 62 28 Cannon 234 | . . . 57 9 . 24 144 Launcher 16 | . . . . . . 7 9 Special 6 | . . 6 . . . . . Kinetic 196 | . 43 2 76 9 . 38 28 Thermal 376 | . 41 8 126 9 . 48 144 Explosive 16 | . . . . . . 7 9 Electromagnetic 16 | . . . 16 . . . . Robot Hit Streak 13 | . 8 4 13 11 . 10 13 Robot Miss Streak 5 | . 3 1 5 2 . 2 4 Penetration Max 1 | . . . . . . . 1 Secondary Targets 2 | . . . 2 . . . . Max Gunslinging Chain 1 | . . . 1 . . . . Shots Hit Robots 388 | . 56 2 130 11 . 68 121 Core Hits 209 | . 23 2 65 8 . 45 66 Critical Kills 4 | . . . 1 . . . 3 Critical Parts Destroyed 1 | . . . 1 . . . . Critical Strikes 18 | . 2 . 6 . . 4 6 Burn 10 | . 2 . 4 . . 4 . Meltdown 3 | . . . . . . . 3 Destroy 2 | . . . 2 . . . . Sever 3 | . . . . . . . 3 Melee Attacks 21 | . . . . . . . 21 Impact . | . . . . . . . . Slashing 21 | . . . . . . . 21 Piercing . | . . . . . . . . Sneak Attacks 3 | . . . . . . . 3 Combat Hostiles . | . . . . . . . . Follow-up Attacks . | . . . . . . . . Damage Inflicted 8733 | . 568 45 2527 222 . 1772 3599 Guns 3266 | . 566 36 1604 54 . 676 330 Cannons 3018 | . . . 715 166 . 288 1849 Explosions 1674 | . . . 117 . . 788 769 Melee 622 | . . . . . . . 622 Ramming 153 | . 2 9 91 2 . 20 29 Kinetic 1709 | . 239 . 734 54 . 352 330 Thermal 4506 | . 327 36 1516 166 . 612 1849 Explosive 1557 | . . . . . . 788 769 Electromagnetic 186 | . . . 186 . . . . Impact . | . . . . . . . . Slashing 622 | . . . . . . . 622 Piercing . | . . . . . . . . Highest Corruption 3 | . . . . . . . 3 Average Corruption 2 | . . . . . . . 2 Corruption Purged . | . . . . . . . . Corruption Blocked . | . . . . . . . . Effects 33 | . . . . . . . 33 Message Errors 9 | . . . . . . . 9 Matter Fused 4 | . . . . . . . 4 Heat Flow Errors 4 | . . . . . . . 4 Energy Discharges 3 | . . . . . . . 3 Parts Rejected 2 | . . . . . . . 2 Parts Fused 2 | . . . . . . . 2 Data Loss (minor) 2 | . . . . . . . 2 Data Loss (major) 1 | . . . . . . . 1 Misfires 2 | . . . . . . . 2 Alerts 2 | . . . . . . . 2 Weapon Failures 2 | . . . . . . . 2 Overload Shots . | . . . . . . . . Overflow Damage 60 | . . . 11 . . 21 28 Projectiles 17 | . . . . . . 11 6 Explosions 43 | . . . 11 . . 10 22 Melee . | . . . . . . . . Knockbacks 1 | . . . . . . . 1 Impact 1 | . . . . . . . 1 Kinetic . | . . . . . . . . Secondary . | . . . . . . . . Self-Inflicted Damage 51 | . . . 27 . . . 24 Shots 2 | . . . 1 . . . 1 Rammed 19 | . . 2 11 1 . 3 2 Targets Rammed 29 | . 3 2 12 1 . 4 7 Kicked 7 | . 3 . . . . . 4 Crushed 3 | . . . 1 . . 1 1 Highest Temperature 204 | . 170 16 168 4 . 120 204 Average Temperature 38 | . 52 12 29 3 . 25 54 Received Heat Transfer 1556 | . 147 . 381 33 . 513 482 Siege Activations . | . . . . . . . . Robots Corrupted . | . . . . . . . . Combat Hostiles . | . . . . . . . . Parts Fried . | . . . . . . . . Impact Corruptions . | . . . . . . . . Robots Melted 3 | . . . . . . . 3 Combat Hostiles 3 | . . . . . . . 3 Parts Melted 18 | . 1 . 5 . . 2 10 Heat Transferred 9807 | . 1110 74 3480 296 . 1517 3330 Parts Sabotaged . | . . . . . . . . Parts Stolen . | . . . . . . . . Parts Stripped . | . . . . . . . . Power Chain Reactions 1 | . . . 1 . . . . Missiles Intercepted . | . . . . . . . . Alert | -11 -10 -10 -9 -9 -9 -8 -8 ------- Run | Jun Mat Min Mat Min Exi Min Mat Peak Influence 806 | . 345 61 522 326 . 318 806 Initial 186 | . . 56 23 186 . . 27 Average 281 | . 180 59 323 251 . 160 366 Maximum Alert Level 3 | . 1 . 2 1 . 1 3 Low Security (%) 32 | . 49 100 8 31 . 61 26 Level 1 41 | . 50 . 67 68 . 38 14 Level 2 24 | . . . 24 . . . 53 Level 3 1 | . . . . . . . 4 Level 4 . | . . . . . . . . Level 5 . | . . . . . . . . High Security . | . . . . . . . . Max Security . | . . . . . . . . Squads Dispatched 14 | . 2 . 5 . . . 7 Investigation 4 | . 1 . 2 . . . 1 Extermination . | . . . . . . . . Reinforcement 10 | . 1 . 3 . . . 6 Assault . | . . . . . . . . Garrison . | . . . . . . . . Intercept . | . . . . . . . . Searches Triggered . | . . . . . . . . Construction Impeded 1 | . . . . . . . 1 Haulers Reinforced . | . . . . . . . . Active Scanning Responses . | . . . . . . . . Cargo Convoy Interrupts . | . . . . . . . . Stealth | -11 -10 -10 -9 -9 -9 -8 -8 --------- Run | Jun Mat Min Mat Min Exi Min Mat Distress Signals 10 | . . . 4 . . . 6 Communications Jammed . | . . . . . . . . Distress Signals . | . . . . . . . . Times Spotted 151 | . 18 . 49 6 . 18 60 Peak Tracking Total 8 | . 5 . 6 3 . 4 8 Tactical Retreats 14 | . 1 . 5 . . 2 6 Traps | -11 -10 -10 -9 -9 -9 -8 -8 ------- Run | Jun Mat Min Mat Min Exi Min Mat Traps Triggered 4 | . . . 2 . . . 2 Indirectly . | . . . . . . . . Trap Hack Attempts . | . . . . . . . . Triggered . | . . . . . . . . Disarmed . | . . . . . . . . Reprogrammed . | . . . . . . . . Reused . | . . . . . . . . Traps Extracted . | . . . . . . . . Installed . | . . . . . . . . Triggered . | . . . . . . . . Machines | -11 -10 -10 -9 -9 -9 -8 -8 ---------- Run | Jun Mat Min Mat Min Exi Min Mat Machines Disabled 6 | . . . 2 . . 1 3 Max in Single Turn 1 | . . . 1 . . 1 1 Machines Repaired . | . . . . . . . . Machines Sabotaged . | . . . . . . . . Overloaded Fab Kills . | . . . . . . . . Hacking | -11 -10 -10 -9 -9 -9 -8 -8 --------- Run | Jun Mat Min Mat Min Exi Min Mat Machines Accessed 11 | . 1 1 4 . 2 . 3 Terminals 5 | . 1 . 2 . . . 2 Fabricators . | . . . . . . . . Repair Stations 3 | . . . 2 . . . 1 Recycling Units . | . . . . . . . . Scanalyzers . | . . . . . . . . Garrison Access . | . . . . . . . . Total Hacks 34 | . 2 1 15 . 2 . 14 Successful 16 | . . 1 7 . 2 . 6 Failed 18 | . 2 . 8 . . . 8 Catastrophic 4 | . 1 . 1 . . . 2 Database Lockouts . | . . . . . . . . Manual 5 | . 2 . 1 . 1 . 1 Terminals 13 | . 2 . 6 . . . 5 Fabricators . | . . . . . . . . Repair Stations 18 | . . . 9 . . . 9 Recycling Units . | . . . . . . . . Scanalyzers . | . . . . . . . . Garrison Access . | . . . . . . . . Terminal Hacks 5 | . . 1 2 . 2 . . Record 2 | . . . 1 . 1 . . Open Door 1 | . . 1 . . . . . Branch Access Points 1 | . . . 1 . . . . EX-Prototype ID Bank 1 | . . . . . 1 . . Fabricator Hacks . | . . . . . . . . Repair Station Hacks 11 | . . . 5 . . . 6 Scan Component 6 | . . . 3 . . . 3 Repair 5 | . . . 2 . . . 3 Recycling Unit Hacks . | . . . . . . . . Scanalyzer . | . . . . . . . . Garrison Access Hacks . | . . . . . . . . Unauthorized Hacks . | . . . . . . . . Terminals . | . . . . . . . . Fabricators . | . . . . . . . . Repair Stations . | . . . . . . . . Recycling Units . | . . . . . . . . Scanalyzers . | . . . . . . . . Garrison Access . | . . . . . . . . Data Cores Recovered . | . . . . . . . . Used . | . . . . . . . . Hacking Detections 8 | . 1 . 4 . . . 3 Full Trace Events 3 | . 1 . 1 . . . 1 Feedback Events . | . . . . . . . . Feedback Blocked . | . . . . . . . . Robot Schematics Acquired . | . . . . . . . . Robots Built . | . . . . . . . . Authchips . | . . . . . . . . Time . | . . . . . . . . Total Robot Build Rating . | . . . . . . . . Part Schematics Acquired . | . . . . . . . . Parts Built . | . . . . . . . . Authchips . | . . . . . . . . Time . | . . . . . . . . Total Part Build Rating . | . . . . . . . . Parts Repaired 5 | . . . 2 . . . 3 Time 161 | . . . 58 . . . 103 Parts Recycled . | . . . . . . . . Recycled Matter . | . . . . . . . . Retrieved Matter . | . . . . . . . . Retrieved Components . | . . . . . . . . Parts Scanalyzed . | . . . . . . . . Part Schematics Acquired . | . . . . . . . . Parts Damaged . | . . . . . . . . Bothacking | -11 -10 -10 -9 -9 -9 -8 -8 ------------ Run | Jun Mat Min Mat Min Exi Min Mat Used RIF Installer . | . . . . . . . . Robots Hacked . | . . . . . . . . Non-combat . | . . . . . . . . Combat . | . . . . . . . . Robot Hacks Applied . | . . . . . . . . Relay Couplers Released . | . . . . . . . . Fabnet Peak Effective % . | . . . . . . . . Robots Rewired . | . . . . . . . . Allies Hacked . | . . . . . . . . Hacks Repelled . | . . . . . . . . Allies | -11 -10 -10 -9 -9 -9 -8 -8 -------- Run | Jun Mat Min Mat Min Exi Min Mat Total Allies . | . . . . . . . . Largest Group . | . . . . . . . . Highest-Rated Group . | . . . . . . . . Highest-Rated Ally . | . . . . . . . . Total Orders . | . . . . . . . . Ally Attacks . | . . . . . . . . Total Damage . | . . . . . . . . Kills . | . . . . . . . . Allies Corrupted . | . . . . . . . . Allies Melted . | . . . . . . . . Intel | -11 -10 -10 -9 -9 -9 -8 -8 ------- Run | Jun Mat Min Mat Min Exi Min Mat Robot Analysis Total . | . . . . . . . . Derelict Logs Recovered 2 | . . 2 . . . . . Drone Launches . | . . . . . . . . Drone Recoveries . | . . . . . . . . Exploration | -11 -10 -10 -9 -9 -9 -8 -8 ------------- Run | Jun Mat Min Mat Min Exi Min Mat Turns Passed 7056 | . 429 308 2035 528 683 1055 2018 Spaces Moved 2614 | 1 216 147 658 206 282 359 745 Core . | . . . . . . . . Treads 2053 | . . 94 658 206 282 359 454 Legs 561 | 1 216 53 . . . . 291 Wheels . | . . . . . . . . Hover . | . . . . . . . . Flight . | . . . . . . . . Fastest Speed 90 | 120 120 160 160 240 240 240 90 Average Speed 209 | 120 123 170 234 240 240 240 184 Slowest Speed 320 | 120 190 190 320 240 240 240 240 Overloaded Moves . | . . . . . . . . Propulsion Burnouts . | . . . . . . . . Robots Hopped . | . . . . . . . . Cave-ins Triggered . | . . . . . . . . Exploration Rate (%) 45 | 2 38 23 60 39 65 73 60 Regions Visited 7 Branch Regions 4 Pre-discovered Areas 3 | . . 2 . . 1 . . Known Exits Taken 1 | . . . 1 . . . . Unknown Exits Taken 6 | 1 1 1 . 1 1 1 . Scrap Searched 1 | . . . . . . 1 . Spaces Dug 44 | . . . . . . 6 38 Terrain Destroyed 87 | . . . 2 . . 28 57 Melee . | . . . . . . . . Projectile . | . . . . . . . . AOE 87 | . . . 2 . . 28 57 Terrain Rammed . | . . . . . . . . Walls Destroyed . | . . . . . . . . Machines Disabled . | . . . . . . . . Actions | -11 -10 -10 -9 -9 -9 -8 -8 --------- Run | Jun Mat Min Mat Min Exi Min Mat Total 3562 | . 307 182 926 223 291 458 1175 Wait 310 | . 12 5 75 . . 27 191 Move 2608 | . 216 146 657 205 281 358 745 Hop . | . . . . . . . . Pick Up 88 | . 8 7 24 2 3 5 39 Fast Attach 17 | . 1 2 5 . . . 9 Attach 22 | . . . 6 2 . 5 9 Detach 1 | . . 1 . . . . . Swap 71 | . 11 5 16 1 2 7 29 Drop 81 | . 14 6 21 3 5 2 30 Fire 315 | . 43 8 110 9 . 50 95 Melee 21 | . . . . . . . 21 Ram . | . . . . . . . . Kick 6 | . 2 . . . . . 4 Crush 22 | . . 2 12 1 . 4 3 Escape Stasis . | . . . . . . . . Rewire . | . . . . . . . . Trap . | . . . . . . . . Miscellaneous . | . . . . . . . . Route ------- -11/Junkyard -10/Materials -10/Mines -9/Materials (discovered 3 exits: *Mat x2 / *Min) -9/Mines (discovered 2 exits: *Mat / *Exi) -9/Exiles -8/Mines -8/Materials (discovered 2 exits: [*Fac x2]) History --------- Turn | Location | Event 1 | -11/Junkyard | Discovered new exit (range 0) 1 | -11/Junkyard | Entered Materials 371 | -10/Materials | Discovered new exit (range 8) 430 | -10/Materials | Entered Mines 437 | -10/Mines | Found the Drone Emporium 440 | -10/Mines | Build established: Scavenger-Mutant 446 | -10/Mines | Found Prototype Device 446 | -10/Mines | Identified Sensor Drone Bay 503 | -10/Mines | Learned location of Zion (-7) 516 | -10/Mines | Joined a pair of Derelicts in attacking an 0b10 outpost 518 | -10/Mines | Met a Derelict bent on vengeance 680 | -10/Mines | Excavation squad dispatched 680 | -10/Mines | A large section of the Mines collapsed 729 | -10/Mines | Discovered new exit (range 8) 738 | -10/Mines | Entered Materials 738 | -9/Materials | Evolved 2 slots: Propulsion x1, Utility x1 768 | -9/Materials | Identified exit to Mines 1076 | -9/Materials | Repaired Beam Rifle 1446 | -9/Materials | Discovered new exit (range 11) 1542 | -9/Materials | Repaired Lgt. Treads 1927 | -9/Materials | Discovered new exit (range 3) 2317 | -9/Materials | Build established: Mutant 2773 | -9/Materials | Entered Mines 3041 | -9/Mines | Build established: Scavenger-Mutant 3256 | -9/Mines | Discovered new exit (range 13) 3289 | -9/Mines | Deemed a non-threat by the Exiles lab entrance 3292 | -9/Mines | Discovered new exit (range 5) 3301 | -9/Mines | Entered Exiles 3361 | -9/Exiles | Met 8R-AWN 3400 | -9/Exiles | Met EX-HEX 3553 | -9/Exiles | Met EX-BIN 3587 | -9/Exiles | Aligned with FarCom system 3589 | -9/Exiles | Given EX-Vault access code 3647 | -9/Exiles | Opened EX-Vault 3668 | -9/Exiles | Found Lightpack 2.0 3720 | -9/Exiles | Warned to stay clear of 0b10 Research branches 3797 | -9/Exiles | Met EX-DEC 3965 | -9/Exiles | Discovered new exit (range 10) 3984 | -9/Exiles | Left Exiles lab with Lightpack 2.0 3984 | -9/Exiles | Entered Mines 4067 | -8/Mines | Core integrity fell below 50% 4170 | -8/Mines | Lost 3 parts (2n1u) 4841 | -8/Mines | Build established: Mutant 5027 | -8/Mines | Discovered new exit (range 5) 5039 | -8/Mines | Entered Materials 5039 | -8/Materials | Evolved 2 slots: Utility x2 5099 | -8/Materials | Repaired Lgt. Treads 5152 | -8/Materials | Repaired Adv. Beam Cannon 5179 | -8/Materials | Repaired Lgt. Armor Plating 5801 | -8/Materials | Discovered new exit (range 11) 5898 | -8/Materials | Destroyed 10 combat bots 5908 | -8/Materials | Build established: Scavenger-Mutant 6824 | -8/Materials | Discovered new exit (range 15) 6830 | -8/Materials | Build established: Hauler-Mutant 7057 | -8/Materials | Self-destructed Last Messages --------------- 06997_ K-01 Serf collects debris. 06997_ G-47 Trooper Particle Gun severed. 07000_ G-47 Trooper destroyed. 07000_ K-01 Serf collects debris. 07007_ Acquired Aluminum Leg. Aluminum Leg swallowed by quantum anomaly within Lightpack 2.0. 07008_ K-01 Serf collects debris. 07008_ Acquired 9 matter. 07011_ Acquired Aluminum Leg. Adv. Beam Cannon swallowed by quantum anomaly within Lightpack 2.0. Quantum anomaly discharges Carbon-fiber Leg. 07014_ K-01 Serf collects debris. 07015_ Sneak attack on A-02 Transporter. 07048_ System corrupted: VSS Leg rejected. 07048_ Acquired VSS Leg. 07049_ Sneak attack on U-05 Engineer. 07049_ U-05 Engineer destroyed. 07050_ K-01 Serf collects debris. 07052_ Acquired 11 matter. 07053_ K-01 Serf collects debris. Map ----- +----------------------------------------------------+ | ???????????#""" * +%=[ #????????????????????? | | ???????????# % !#== #????????????????????? | | ???????????########[% "" #????????????????????? | | ?????????????# """ #????????????????????? | | ?????????????# ### """ ## ###???????????????? | | ???????????????# # #???????????## | | ???????????????# # ###########?????????? | | ?????#+#???????### ###########?????????# | | ????? ????????## #?????????# | | ????? ?????????# #?????????# | | ????? ?????????# w #?????????# / | | ???? #????????# !!! #?????????? | | " ???" #????????# !! ########??? | | " """ #????????# !! # *#??? ! | | " """ #????????# # #???? | | " """ #????????+ t # #??# ## | | #????????# # "Y" #????# | | #????????# # """ ?????# | | " """ #????????# # ???????# | | " """ #????????# w ##+########## | | " """ ########## % *!k ! w % + | | " """ g % *! k!%* ############# | | ^ ###########+#####u = #???????????## | | #???????? ???# ###########???????????# | | " ###?????? ???# #?????????????????????# | | " !!""#?????# """??#@#############?????????# | | " ! T"#?????# """??# # #?????###### | | " ""#?????# """ ?# # !//#?????# | | ###?????# ?# # //!#?????# """" | | #???????######### + / #?????# """" | | #########???????????????# # | #?????# """" | | #?????????????????# # ! #?????# """" | | #?????????????????# # #?????# """" | | """ #?????????????????# # #?????# | | """ #?????????????????# ###########?????###### | | """ [#?????????????????# #????????????????????? | | #?????????????????# u #????????????????????? | | [ #?????????????????# #????????????????????? | | #######?????????????????# #????????????????????? | | ????????????????######### ##???#######?????????? | | ????????????????# """ # % #???#! ##########+ | | ????????????????# """ # ##### T | | ????????????????# """ + % "" = ^ | | ????????????????# # ##### ^ | | ????????????????#] ! # #???# ########+## | | ????????????????# #######???### ###?????????? | | ????????????????########?????????? #??????????? | | ????????????????????????????????? #??????????? | | ????????????????????????????????#######??????????? | | ?????????????????????????????????????????????????? | +----------------------------------------------------+ Best States ------------- Heat Dissipation 64 Energy Generation 16 Energy Capacity 290 Matter Stores 300 Matter Capacity 300 Sight Range 16 Terrain Scan Density 10 Armor Coverage 225 Evasion (%) 57 Recoil Reduction 3 Item Schematics ----------------- None Robot Schematics ------------------ None Fabricated ------------ Nothing Alien Tech Used ----------------- None Achievements -------------- None Challenges ------------ None Game ------ Seed TerrabombGlidesysProcessor Manual? 0 Play Time 00:30:55 Cumulative 813.0 hours Start 2023.03.04 @ 01:20:13 End 2023.03.04 @ 01:46:40 Sessions 1 Manual Loads 0 Difficulty Rogue Special Mode None Game No. 1235 Rogue 1235 Adventurer 0 Explorer 0 Win Type - Total 77 Types 46/1/13/12/4/0/0/1/0 Lore% 91 Gallery% 91 Achievement% 85 Wizard Run 0 Options --------- ASCII 1 Keyboard 0 Movement Numpad Keybinds 0 Fullscreen 0 Font 14/SmallcapsGlow Map View 76x50 Tactical HUD 1 Map Filters NONE Filters NONE Steam 1 RUN: 054cfa6f-9f00-4d6e-af54-e362233244ad